Cogmind - Beta 16.1 @@@ ROGUE MODE // 2026.03.18 @ 21:28:10 Player: +Jones Result: Destroyed by X4-41H(R) with Subdweller Beam Cannon Performance ------------- Evolutions (0) 0 Regions Visited (3) 600 Robots Destroyed (44) 220 Value Destroyed (1077) 1077 Prototype IDs (13) 260 Alien Tech Used (0) 0 Bonus (-163) -163 TOTAL SCORE: 1994 Bonus ------- Follower Combat Kills 80 Friendly Fire -243 Cogmind --------- Core Integrity 0/250 Matter 274/300 Energy 52/100 System Corruption 0% Temperature Cool (9) Movement Rolling (110) Ox2 Location -10/Subcaves Parts ------- > --- POWER (1) -------- (None) > --- PROPULSION (2) --- Wheel Wheel > --- UTILITY (2) ------ High-capacity Storage Unit Makeshift Light Armor Plating > --- WEAPON (2) ------- Subdweller Beam Cannon Battle Rifle > --- INVENTORY (20) --- Subdweller Monowheel Huge Storage Unit High-capacity Matter Pod (200) Gun Armor Cobbler Unit Subdweller Laser Subdweller Beam Cannon Subdweller Beam Cannon Battle Rifle Battle Rifle Battle Rifle Barrage Gun Light Cannon Bore Cannon Rocket Launcher Subdweller Shrapnel Launcher Mining Laser Multitool Makeshift Spear Peak State ------------ > --- POWER ------------ Improved Ion Engine > --- PROPULSION ------- Subdweller Monowheel Subdweller Monowheel > --- UTILITY ---------- High-capacity Storage Unit Subdweller Optics > --- WEAPON ----------- Battle Rifle Makeshift Spear > --- INVENTORY -------- Wheel Wheel Huge Storage Unit High-capacity Matter Pod Cobbler Unit Subdweller Laser Subdweller Beam Cannon Subdweller Beam Cannon Subdweller Beam Cannon Assault Rifle Assault Rifle Battle Rifle Battle Rifle Barrage Gun Light Cannon Bore Cannon Rocket Launcher Mining Laser [Rating: 18] Favorites ----------- Power Improved Ion Engine Engine Improved Ion Engine Propulsion Light Treads Treads Light Treads Wheel Subdweller Monowheel Utility High-capacity Storage Unit Device Subdweller Optics Storage High-capacity Storage Unit Protection Light Armor Plating Weapon Assault Rifle Energy Cannon Subdweller Beam Cannon Ballistic Gun Assault Rifle Ballistic Cannon Battle Cannon Launcher Rocket Launcher Special Weapon Mining Laser Piercing Weapon Makeshift Spear Build | -11 -10 -10 -10 ------- Run | Yrd Mat Min Sub Slots Evolved . | . . . . Power . | . . . . Propulsion . | . . . . Utility . | . . . . Weapon . | . . . . Parts Attached 29 | 7 3 2 17 Power 3 | 1 . 2 . Engine 3 | 1 . 2 . Core . | . . . . Reactor . | . . . . Propulsion 7 | 2 . . 5 Treads 3 | 2 . . 1 Leg . | . . . . Wheel 4 | . . . 4 Hover . | . . . . Flight . | . . . . Utility 8 | 2 1 . 5 Device 4 | 1 . . 3 Storage 2 | 1 . . 1 Processor . | . . . . Hackware . | . . . . Protection 2 | . 1 . 1 Artifact . | . . . . Weapon 11 | 2 2 . 7 Energy Gun . | . . . . Energy Cannon 1 | . . . 1 Ballistic Gun 5 | 2 1 . 2 Ballistic Cannon 2 | . . . 2 Launcher 1 | . . . 1 Special Weapon 1 | . 1 . . Impact Weapon . | . . . . Slashing Weapon . | . . . . Piercing Weapon 1 | . . . 1 Special Melee Weapon . | . . . . Unidentified Prototypes . | . . . . Parts Lost 10 | . 2 . 8 Power 1 | . . . 1 Propulsion 4 | . . . 4 Utility 2 | . 1 . 1 Weapon 3 | . 1 . 2 Highest Loss Streak 4 | . 2 . 4 To Critical Strikes . | . . . . Average Backups 9 | . 4 6 13 Power . | . . . . Propulsion . | . . . . Utility 2 | . 2 3 2 Weapon 6 | . 2 3 9 Tool/Special . | . . . . Unused Backups 14 | 1 1 . 12 Power 1 | 1 . . . Propulsion . | . . . . Utility 4 | . . . 4 Weapon 8 | . 1 . 7 Tool/Special 1 | . . . 1 Average Slot Usage (%) 97 | . 95 100 98 Engine 13 | . 14 14 13 Treads 25 | . 27 28 23 Wheel 2 | . . . 4 Device 6 | . 5 . 8 Storage 14 | . 14 14 14 Protection 6 | . 4 14 5 Ballistic Gun 18 | . 27 28 13 Ballistic Cannon 3 | . . . 5 Launcher 4 | . . . 7 Piercing Weapon 1 | . . . 1 Peak Build Rating 18 | 7 7 9 18 Average Rating 10 | 5 6 7 13 On Entrance 5 | . 7 7 9 Avg Prop Armor Cover (%) 8 | . . . 8 Naked Turns . | . . . . Heaviest Build 57 | 13 15 19 57 Greatest Support 40 | 40 40 40 40 Greatest Overweight (x) 18 | 1 . . 18 Average Overweight (x) . | . . . 1 Largest Inventory Capacity 20 | 8 8 8 20 Average Capacity 15 | 7 8 8 19 Most Carried 20 | 2 6 8 20 Average Carried 10 | . 4 6 14 Final Capacity 20 | 8 8 8 20 Final Carried 20 | 2 5 8 20 Class Distribution -------------------- 97% | Mutant Dominant Class ---------------- Mutant | -10/Materials Mutant | -10/Mines Mutant | -10/Subcaves Resources | -11 -10 -10 -10 ----------- Run | Yrd Mat Min Sub Matter Collected 2090 | 342 514 168 1066 Remotely . | . . . . Salvage Created 1284 | 225 566 47 446 Parts 103 | 26 39 10 28 Haulers Intercepted . | . . . . Recyclers Shooed 3 | 1 1 1 . Parts Field Recycled . | . . . . Retrieved Matter . | . . . . Parts Self-Destructed 9 | . . . 9 Prevented . | . . . . Parts Restored . | . . . . Kills | -11 -10 -10 -10 ------- Run | Yrd Mat Min Sub Combat Hostiles Destroyed 32 | . 15 4 13 Melee 1 | . . . 1 Guns 22 | . 15 4 3 Cannons 2 | . . . 2 AOE 7 | . . . 7 Classes Destroyed 9 | 2 4 . 3 Worker 1 | . 1 . . Tunneler 8 | 7 . 1 . Recycler 1 | 1 . . . Watcher 2 | . 2 . . Swarmer 8 | . 3 4 1 Grunt 14 | . 12 . 2 Artisan 1 | . . . 1 Subdweller 10 | . . . 10 Scientist 1 | . . . 1 Best Kill Streak 7 | 3 7 2 2 Combat Bots Only 7 | . 7 2 2 Max Kills in Single Turn 2 | 1 1 2 1 Gunslinging . | . . . . Exploded 1 | . . . 1 Melee 1 | . . . 1 Uniques/NPCs Destroyed . | . . . . Combat | -11 -10 -10 -10 -------- Run | Yrd Mat Min Sub Hostile Shots Fired 128 | . 69 8 51 Missed 33 | . 18 2 13 Hits 95 | . 51 6 38 Projectile 95 | . 51 6 38 Critical Strikes 2 | . . 1 1 Damage Taken 1698 | . 577 76 1045 Core 258 | . 50 . 208 Absorbed by Shields . | . . . . Regen/Repaired (Parts) 601 | . 601 . . Core Remaining (%) 100 | 100 . . . Volleys Fired 175 | 22 56 7 90 Largest 2 | 2 2 2 2 Hottest 105 | 40 100 40 105 Shots Fired 315 | 44 109 14 148 Gun 232 | 44 106 14 68 Cannon 54 | . . . 54 Launcher 26 | . . . 26 Special 3 | . 3 . . Kinetic 284 | 44 106 14 120 Thermal 5 | . 3 . 2 Explosive 26 | . . . 26 Electromagnetic . | . . . . Robot Hit Streak 21 | 9 8 3 21 Robot Miss Streak 5 | 4 5 3 3 Penetration Max . | . . . . Secondary Targets 4 | . 4 . . Max Gunslinging Chain 1 | . 1 . . Shots Hit Robots 182 | 29 68 5 80 Core Hits 77 | 9 30 5 33 Critical Kills . | . . . . Critical Parts Destroyed 1 | . . . 1 Critical Strikes 1 | . . . 1 Destroy 1 | . . . 1 Melee Attacks 34 | . . . 34 Impact . | . . . . Slashing . | . . . . Piercing 34 | . . . 34 Sneak Attacks 1 | . . . 1 Combat Hostiles . | . . . . Follow-up Attacks . | . . . . Damage Inflicted 3835 | 370 910 85 2470 Guns 2130 | 370 888 79 793 Cannons 268 | . . . 268 Explosions 1244 | . . . 1244 Melee 165 | . . . 165 Ramming 28 | . 22 6 . Kinetic 2368 | 370 888 79 1031 Thermal 30 | . . . 30 Explosive 1244 | . . . 1244 Electromagnetic . | . . . . Impact . | . . . . Slashing . | . . . . Piercing 165 | . . . 165 Highest Corruption . | . . . . Average Corruption . | . . . . Corruption Purged . | . . . . Corruption Blocked . | . . . . Overload Shots . | . . . . Overflow Damage . | . . . . Projectiles . | . . . . Explosions . | . . . . Melee . | . . . . Knockbacks 3 | . 1 . 2 Impact 1 | . 1 . . Kinetic 2 | . . . 2 Secondary . | . . . . Self-Inflicted Damage 41 | . . . 41 Shots 1 | . . . 1 Rammed 8 | . 5 3 . Targets Rammed 10 | . 6 4 . Kicked . | . . . . Crushed 2 | . 1 1 . Highest Temperature 60 | . 60 24 33 Average Temperature 15 | . 16 9 18 Received Heat Transfer 543 | . 261 36 246 Siege Activations . | . . . . Martial Activations . | . . . . Shielding Activations . | . . . . Robots Disrupted . | . . . . Combat Hostiles . | . . . . Robots Corrupted . | . . . . Combat Hostiles . | . . . . Parts Fried . | . . . . Impact Corruptions . | . . . . Robots Melted . | . . . . Combat Hostiles . | . . . . Parts Melted . | . . . . Heat Transferred 37 | . . . 37 Parts Sabotaged . | . . . . Parts Stolen . | . . . . Parts Stripped . | . . . . Power Chain Reactions . | . . . . Alert | -11 -10 -10 -10 ------- Run | Yrd Mat Min Sub Maximum Alert Level . | . . . . Low Security (%) 100 | 100 100 100 . Level 1 . | . . . . Level 2 . | . . . . Level 3 . | . . . . Level 4 . | . . . . Level 5 . | . . . . High Security . | . . . . Max Security . | . . . . Peak Influence 170 | 10 170 74 . Initial 6 | . . 6 . Average 28 | 1 41 11 . Influence Increases 771 | 40 455 173 103 Destroy 0b10 Robot/C 520 | . 300 140 80 Destroy 0b10 Robot/NC 60 | 40 15 5 . Destroy Leader 124 | . 84 20 20 Allied During Kill 9 | . . 6 3 Successful Hack 7 | . 7 . . Destroy Structure 6 | . 4 2 . Lose Combat Pursuer 45 | . 45 . . Influence Decreases 771 | 40 439 189 103 Entered New Map 10 | . . 10 . Time Decay 760 | 40 439 179 102 Lost Ally 1 | . . . 1 Squads Dispatched 6 | . 6 . . Investigation 2 | . 2 . . Extermination . | . . . . Reinforcement 4 | . 4 . . Assault . | . . . . Garrison . | . . . . Intercept . | . . . . Searches Triggered . | . . . . Construction Impeded . | . . . . Haulers Reinforced . | . . . . Active Scanning Responses . | . . . . Cargo Convoy Interrupts . | . . . . Stealth | -11 -10 -10 -10 --------- Run | Yrd Mat Min Sub Distress Signals . | . . . . Communications Jammed . | . . . . Distress Signals . | . . . . Times Spotted 49 | . 25 8 16 Peak Tracking Total 4 | . 4 3 2 Tactical Retreats 3 | . 3 . . Traps | -11 -10 -10 -10 ------- Run | Yrd Mat Min Sub Traps Triggered 5 | . 1 . 4 Indirectly . | . . . . Trap Hack Attempts . | . . . . Triggered . | . . . . Disarmed . | . . . . Reprogrammed . | . . . . Reused . | . . . . Traps Extracted . | . . . . Installed . | . . . . Triggered . | . . . . Machines | -11 -10 -10 -10 ---------- Run | Yrd Mat Min Sub Machines Disabled 1 | . . . 1 Max in Single Turn 1 | . . . 1 Machines Repaired . | . . . . Machines Dismantled . | . . . . Machines Sabotaged . | . . . . Overloaded Fab Kills . | . . . . Hacking | -11 -10 -10 -10 --------- Run | Yrd Mat Min Sub Machines Accessed 9 | . 7 . 2 Terminals 5 | . 5 . . Fabricators . | . . . . Repair Stations 1 | . 1 . . Recycling Units 1 | . 1 . . Scanalyzers . | . . . . Garrison Access . | . . . . Total Hacks 27 | . 24 . 3 Successful 19 | . 16 . 3 Failed 8 | . 8 . . Catastrophic . | . . . . Database Lockouts . | . . . . Manual 14 | . 14 . . Terminals 15 | . 15 . . Fabricators . | . . . . Repair Stations 6 | . 6 . . Recycling Units 3 | . 3 . . Scanalyzers . | . . . . Garrison Access . | . . . . Terminal Hacks 4 | . 1 . 3 Record 2 | . . . 2 Robot Analysis 1 | . 1 . . Proto ID Catalog 1 | . . . 1 Fabricator Hacks . | . . . . Repair Station Hacks 6 | . 6 . . Scan Component 3 | . 3 . . Repair 3 | . 3 . . Recycling Unit Hacks 1 | . 1 . . Retrieve Components 1 | . 1 . . Scanalyzer . | . . . . Garrison Access Hacks . | . . . . Unauthorized Hacks 8 | . 8 . . Terminals 8 | . 8 . . Botnet 3 | . 3 . . Skim 5 | . 5 . . Fabricators . | . . . . Repair Stations . | . . . . Recycling Units . | . . . . Scanalyzers . | . . . . Garrison Access . | . . . . Data Cores Recovered . | . . . . Used . | . . . . Hacking Detections 7 | . 7 . . Full Trace Events . | . . . . Feedback Events . | . . . . Feedback Blocked . | . . . . Robot Schematics Acquired . | . . . . Robots Built . | . . . . Authchips . | . . . . Time . | . . . . Total Robot Build Rating . | . . . . Part Schematics Acquired . | . . . . Parts Built . | . . . . Authchips . | . . . . Time . | . . . . Total Part Build Rating . | . . . . Part Studies Acquired . | . . . . Parts Repaired 3 | . 3 . . Time 78 | . 78 . . Parts Recycled . | . . . . Recycled Matter . | . . . . Retrieved Matter . | . . . . Retrieved Components 9 | . 9 . . Parts Scanalyzed . | . . . . Part Schematics Acquired . | . . . . Parts Damaged . | . . . . Bothacking | -11 -10 -10 -10 ------------ Run | Yrd Mat Min Sub Used RIF Installer . | . . . . Robots Hacked . | . . . . Non-combat . | . . . . Combat . | . . . . Robot Hacks Applied . | . . . . Relay Couplers Released . | . . . . Fabnet Peak Effective % . | . . . . Robots Rewired . | . . . . Allies Hacked . | . . . . Hacks Repelled . | . . . . Allies | -11 -10 -10 -10 -------- Run | Yrd Mat Min Sub Total Allies 1 | . . 1 . Largest Group 1 | . . 1 1 Highest-Rated Group 31 | . . 31 31 Highest-Rated Ally 31 | . . 31 31 Total Orders . | . . . . Ally Attacks 22 | . . 7 15 Total Damage 305 | . . 83 222 Kills 4 | . . 3 1 Allies Corrupted . | . . . . Allies Melted . | . . . . Intel | -11 -10 -10 -10 ------- Run | Yrd Mat Min Sub Active Infowar (turns) 2283 | 7 770 . 1506 Optics 1506 | . . . 1506 Seismic 777 | 7 770 . . Robot Analysis Total 1 | . 1 . . Derelict Logs Recovered 2 | . . 1 1 Drone Launches . | . . . . Drone Recoveries . | . . . . Exploration | -11 -10 -10 -10 ------------- Run | Yrd Mat Min Sub Turns Passed 8062 | 264 1935 1060 4803 Spaces Moved 3840 | 123 938 642 2137 Core 14 | 12 . . 2 Treads 3143 | 111 938 642 1452 Legs . | . . . . Wheels 683 | . . . 683 Hover . | . . . . Flight . | . . . . Fastest Speed 50 | 50 160 160 110 Average Speed 185 | 150 160 160 205 Slowest Speed 950 | 160 160 160 950 Overloaded Moves . | . . . . Propulsion Burnouts . | . . . . Robots Hopped . | . . . . Potential Cave-ins . | . . . . Cave-ins Triggered . | . . . . Exploration Rate (%) 74 | 6 99 99 95 Regions Visited 3 Branch Regions 2 Pre-discovered Areas 3 | . . 1 2 Known Exits Taken . | . . . . Unknown Exits Taken 3 | 1 1 1 . Scrap Searched 9 | . . 1 8 Spaces Dug 17 | . 3 . 14 Terrain Destroyed 124 | . 3 . 121 Melee 4 | . . . 4 Projectile 5 | . 3 . 2 AOE 115 | . . . 115 Terrain Rammed . | . . . . Walls Destroyed . | . . . . Machines Disabled . | . . . . Actions | -11 -10 -10 -10 --------- Run | Yrd Mat Min Sub Total 4420 | 155 1253 659 2353 Wait 282 | . 238 . 44 Move 3837 | 122 937 641 2137 Hop . | . . . . Pick Up 33 | 3 7 3 20 Fast Attach 13 | 7 2 . 4 Attach 7 | . 3 . 4 Detach 2 | . 1 . 1 Swap 17 | . 2 2 13 Drop 10 | 1 1 2 6 Fire 175 | 22 56 7 90 Melee 34 | . . . 34 Ram . | . . . . Kick . | . . . . Crush 10 | . 6 4 . Escape Stasis . | . . . . Rewire . | . . . . Trap . | . . . . Miscellaneous . | . . . . Route ------- -11/Scrapyard -10/Materials (discovered 5 exits: [*Mat x3] / [*Min x2]) -10/Mines (discovered 3 exits: [*Mat x2] / *Sub) -10/Subcaves (discovered 2 exits: [*Mat x2]) History --------- Turn | Location | Event 3 | -11/Scrapyard | Discovered new exit (range 16) 265 | -11/Scrapyard | Entered Materials 317 | -10/Materials | Build established: Mutant 540 | -10/Materials | Destroyed 7 combat bots 702 | -10/Materials | Discovered new exit (range 11) 772 | -10/Materials | Discovered new exit (range 15) 873 | -10/Materials | Discovered new exit (range 14) 1025 | -10/Materials | Discovered new exit (range 16) 1278 | -10/Materials | Repaired Hcp. Storage Unit 1305 | -10/Materials | Repaired Lgt. Treads 1332 | -10/Materials | Repaired Assault Rifle 1498 | -10/Materials | Discovered new exit (range 6) 2200 | -10/Materials | Entered Mines 2207 | -10/Mines | Escorted by a lone wolf Derelict 2227 | -10/Mines | Learned location of Storage (-7) 2268 | -10/Mines | Received a Rocket Launcher from a helpful Derelict 2387 | -10/Mines | Discovered new exit (range 5) 2456 | -10/Mines | A weapon hastily lodged in a ceiling crevice suddenly fell to the ground 2499 | -10/Mines | Discovered new exit (range 11) 2768 | -10/Mines | Deemed a non-threat by the Exiles lab entrance 2824 | -10/Mines | Learned Materials trap positions 2848 | -10/Mines | Discovered new exit (range 9) 3260 | -10/Mines | Entered Subcaves 3260 | -10/Subcaves | Accompanied by 1 ally 3261 | -10/Subcaves | Approached by a straggling Scientist 3425 | -10/Subcaves | A swath of the cavern ceiling suddenly collapsed 4642 | -10/Subcaves | Learned location of Zion (-7) 4642 | -10/Subcaves | Met a Zionite searching for "candidates" 4868 | -10/Subcaves | Lost 4 parts (1n1u2w) 4890 | -10/Subcaves | Shifting Twisted Machinery released Sub. Optics 5025 | -10/Subcaves | Shifting Twisted Machinery released Sub. Optics 5055 | -10/Subcaves | Shifting Twisted Machinery released Sub. Beam Cannon 5163 | -10/Subcaves | Shifting Twisted Machinery released Sub. Beam Cannon 5526 | -10/Subcaves | Visited Clippyterm 5534 | -10/Subcaves | Learned Factory fabricator intel 6777 | -10/Subcaves | Discovered new exit (range 12) 6893 | -10/Subcaves | Core integrity fell below 50% 6941 | -10/Subcaves | Ambushed by Subdwellers from Twisted Machinery 7111 | -10/Subcaves | Discovered new exit (range 18) 7766 | -10/Subcaves | A swath of the cavern ceiling suddenly collapsed 7846 | -10/Subcaves | Ambushed by Subdweller buried in earth 7853 | -10/Subcaves | Core integrity fell below 20% 7917 | -10/Subcaves | Visited 4L-MR0's lab 7939 | -10/Subcaves | Found Gun Armor 8063 | -10/Subcaves | Destroyed by X4-41H(R) with Subdweller Beam Cannon Last Messages --------------- them are even willing to come in here given their fear of my usual visitors." 07947_ 4L-MR0 mumbles: "Who knows where that last prototype ended up, probably tossed aside somewhere as if it were useless junk..." 07951_ Sneak attack on 4L-MR0. 07951_ 4L-MR0 cries out in pain. 07951_ 4L-MR0 destroyed. 07954_ Acquired Multitool. 07955_ Acquired 10 matter. 08027_ Searching scrap... 08027_ Found Battle Rifle. 08027_ Found Sub. Shrapnel Launcher. 08027_ Found 33 Matter. 08028_ Searching scrap... 08028_ Found Sub. Beam Cannon. 08028_ Found 35 Matter. 08032_ Dropped Assault Rifle. 08036_ Acquired Battle Rifle. 08039_ Acquired Sub. Shrapnel Launcher. Map ----- +----------------------------------------------------+ | ##???????????????????????????????????????????????? | | #????????????????????????????????????????????????? | | #????????????????????????????????????????????????? | | ?????????????????????????????????????????????????? | | ?????????????????????????????????????????????????? | | #????????????????????????????????????????????????? | | #????????????????????????????????????????????????? | | #????????????????????????????????????????????????? | | #????????????????????????????????????????????????? | | #????????????????????????????????????????????????? | | #????????????????????????????????????????????????? | | ?????????????????????????????????????????????????? | | ????????????????????????????????????????????###??? | | ????????????????????????????????????????#?#? ??? | | ???????????????????????????????????????## ## #### | | ???????????????????????????????????????# " "# | | ???????????????????????????????????????? | | ???????????????????######???????????????? | | ??????????????????##" ]%#??????????####???# # | | ??????????????????#[ %"##???????#### ###? # "# | | ############??????#[####??????### ### """# | | " """"""#" #??????#" #??????# # #"" | | "%* "X" / #??????### ###?????????????# | | ## #####??####< " #????????#????# %#### # | | + ### #?## R ######? #????# ##?### | | ########### #?## @ # #????# ##?# | | ####???## #?# ####### #?# | | !%"#####""! #?# # % #?### | | ] # & "#### #### ## % #???### | | ##"=# ### ## ##????#### ###???# | | " "## "### #??####?## #####?????# #"" | | ####" #####????????# # ##????#" #"" # | | ## " ###????????# # #????### ##" ### | | ####?????# #?????## ## | | ########### ###?### ##????#" ### | | ### ### "###??## #?## | | ### "" ###?# #### | | ;### "### ####### | | #######""" #????# | | ##?????## """"" #????## | | ## #???????# " ##### #????# | | #### # ##??????#"""###??# ##???## | | ### ##??# ### ##???????###"#"#??## ##### | | #?### ##?# ##?# ##?#####?####"#### ## # | | #???## #?####### ## ### # #" | | #??## ####### # ## # # ### ## ### ### | | ##??# ## # ##"# # # ## #####?####?? | | #??## && #?# # ## ########??????????? | | #??# # "& ##?# ## ##????????????????? | | #??# !%&& ##??# # # ##????????????????? | +----------------------------------------------------+ Best States ------------- Heat Dissipation 25 Energy Generation 12 Energy Capacity 265 Matter Stores 300 Matter Capacity 300 Sight Range 21 Terrain Scan Density 10 Armor Coverage 150 Evasion (%) 40 Recoil Reduction 2 Item Schematics ----------------- None Robot Schematics ------------------ None Fabricated ------------ Nothing Repaired ---------- Hcp. Storage Unit | 26% | -10/Materials Lgt. Treads | 5% | -10/Materials Assault Rifle | 2% | -10/Materials Studied --------- None Alien Tech Used ----------------- None Achievements -------------- None Challenges ------------ None Game ------ Seed WeaponsSchematicArchive Manual? 0 Play Time 00:46:19 Cumulative 465.8 hours Start 2026.03.18 @ 16:48:46 End 2026.03.18 @ 21:28:10 Sessions 3 Manual Loads 0 Difficulty Rogue Special Mode None Game No. 361 Rogue 361 Adventurer 0 Explorer 0 Win Type - Total 7 Types 5/0/0/0/0/0/0/2/0/0 Lore% 72 Gallery% 72 Achievement% 60 Wizard Run 0 Options --------- Layout 1 ASCII 1 Keyboard 1 Movement Arrows Keybinds 0 Fullscreen 1 Font 32/SmallcapsGlow Map View 50x35 Zoom Use 0% Tactical HUD 1 Map Filters NONE Filters NONE Steam 1 RUN: 78224b5e-da5e-49f9-b80e-4d274b9371f5